Cogmind - Beta 14 @@@ ROGUE MODE // 2024.12.26 @ 19:23:38 Player: CeJaay Result: Destroyed by D-53 Grenadier with Mini Grenade Launcher Performance ------------- Evolutions (0) 0 Regions Visited (2) 400 Robots Destroyed (12) 60 Value Destroyed (204) 204 Prototype IDs (0) 0 Alien Tech Used (0) 0 Bonus (0) 0 TOTAL SCORE: 664 Bonus ------- None Cogmind --------- Core Integrity 0/250 Matter 300/300 Energy 246/250 System Corruption 0% Temperature Cool (2) Movement Walking (120) Location -10/Mines Parts ------- > --- POWER (1) -------- Ion Engine > --- PROPULSION (2) --- Aluminum Leg Aluminum Leg > --- UTILITY (2) ------ Medium Storage Unit Seismic Detector > --- WEAPON (2) ------- EM Pulse Gun Assault Rifle > --- INVENTORY (10) --- Aluminum Leg Compact Wheel Small Storage Unit Sensor Array Sensor Array Seismic Detector Targeting Computer Targeting Computer Particle Gun Light Assault Rifle Peak State ------------ > --- POWER ------------ Ion Engine > --- PROPULSION ------- Aluminum Leg Aluminum Leg > --- UTILITY ---------- Medium Storage Unit Seismic Detector > --- WEAPON ----------- EM Pulse Gun Assault Rifle > --- INVENTORY -------- Aluminum Leg Compact Wheel Small Storage Unit Sensor Array Sensor Array Seismic Detector Targeting Computer Targeting Computer Small Laser Light Assault Rifle [Rating: 8] Favorites ----------- Power Ion Engine Engine Ion Engine Propulsion Compact Wheel Leg Aluminum Leg Wheel Compact Wheel Utility Seismic Detector Device Seismic Detector Storage Medium Storage Unit Weapon Assault Rifle Energy Gun EM Pulse Gun Ballistic Gun Assault Rifle Build | -11 -10 -10 ------- Run | Yrd Mat Min Slots Evolved . | . . . Power . | . . . Propulsion . | . . . Utility . | . . . Weapon . | . . . Parts Attached 15 | 7 6 2 Power 2 | 1 1 . Engine 2 | 1 1 . Core . | . . . Reactor . | . . . Propulsion 6 | 2 2 2 Treads . | . . . Leg 2 | . . 2 Wheel 4 | 2 2 . Hover . | . . . Flight . | . . . Utility 3 | 2 1 . Device 1 | 1 . . Storage 2 | 1 1 . Processor . | . . . Hackware . | . . . Protection . | . . . Artifact . | . . . Weapon 4 | 2 2 . Energy Gun 1 | . 1 . Energy Cannon . | . . . Ballistic Gun 3 | 2 1 . Ballistic Cannon . | . . . Launcher . | . . . Special Weapon . | . . . Impact Weapon . | . . . Slashing Weapon . | . . . Piercing Weapon . | . . . Special Melee Weapon . | . . . Unidentified Prototypes . | . . . Parts Lost 1 | . 1 . Power . | . . . Propulsion . | . . . Utility . | . . . Weapon 1 | . 1 . Highest Loss Streak 1 | . 1 . To Critical Strikes . | . . . Average Slot Usage (%) 99 | . 99 100 Engine 14 | . 14 14 Leg 9 | . . 22 Wheel 18 | . 28 5 Device 14 | . 14 14 Storage 14 | . 14 14 Energy Gun 8 | . 4 14 Ballistic Gun 18 | . 22 14 Peak Build Rating 8 | 7 7 8 Average Rating 6 | 5 6 7 On Entrance 4 | . 7 7 Naked Turns . | . . . Heaviest Build 20 | 15 20 20 Greatest Support 32 | 32 32 32 Greatest Overweight (x) 1 | . . 1 Average Overweight (x) . | . . . Largest Inventory Capacity 10 | 8 10 10 Average Capacity 9 | 7 9 10 Most Carried 10 | 5 9 10 Average Carried 7 | 2 7 9 Final Capacity 10 | 8 10 10 Final Carried 10 | 4 8 10 Class Distribution -------------------- 100% | Mutant Dominant Class ---------------- Mutant | -10/Materials Mutant | -10/Mines Resources | -11 -10 -10 ----------- Run | Yrd Mat Min Matter Collected 513 | 306 111 96 Remotely . | . . . Salvage Created 346 | 84 111 151 Parts 23 | 6 4 13 Haulers Intercepted . | . . . Recyclers Shooed 1 | . . 1 Parts Field Recycled . | . . . Retrieved Matter . | . . . Parts Self-Destructed . | . . . Prevented . | . . . Kills | -11 -10 -10 ------- Run | Yrd Mat Min Combat Hostiles Destroyed 9 | . 4 5 Guns 8 | . 4 4 AOE 1 | . . 1 Classes Destroyed 5 | 2 3 . Tunneler 1 | 1 . . Recycler 1 | 1 . . Watcher 1 | . 1 . Swarmer 6 | . 3 3 Grunt 3 | . 1 2 Best Kill Streak 3 | 1 3 3 Combat Bots Only 3 | . 3 3 Max Kills in Single Turn 1 | 1 1 1 Gunslinging . | . . . Exploded 1 | . . 1 Melee . | . . . Uniques/NPCs Destroyed . | . . . Combat | -11 -10 -10 -------- Run | Yrd Mat Min Hostile Shots Fired 72 | . 53 19 Missed 14 | . 8 6 Damage Taken 690 | . 417 273 Core 265 | . 142 123 Absorbed by Shields . | . . . Core Remaining (%) 100 | 100 . . Volleys Fired 34 | 6 19 9 Largest 2 | 2 2 2 Hottest 60 | 40 40 60 Shots Fired 65 | 12 35 18 Gun 65 | 12 35 18 Cannon . | . . . Launcher . | . . . Special . | . . . Kinetic 56 | 12 35 9 Thermal . | . . . Explosive . | . . . Electromagnetic 9 | . . 9 Robot Hit Streak 7 | 6 7 5 Robot Miss Streak 4 | 2 4 1 Penetration Max . | . . . Secondary Targets 2 | . 1 1 Max Gunslinging Chain 1 | . 1 1 Shots Hit Robots 37 | 7 18 12 Core Hits 17 | 3 6 8 Critical Kills . | . . . Critical Parts Destroyed . | . . . Critical Strikes . | . . . Melee Attacks . | . . . Impact . | . . . Slashing . | . . . Piercing . | . . . Sneak Attacks . | . . . Combat Hostiles . | . . . Follow-up Attacks . | . . . Damage Inflicted 525 | 93 231 201 Guns 457 | 93 231 133 Cannons . | . . . Explosions 63 | . . 63 Melee . | . . . Ramming 5 | . . 5 Kinetic 373 | 93 231 49 Thermal 63 | . . 63 Explosive . | . . . Electromagnetic 84 | . . 84 Impact . | . . . Slashing . | . . . Piercing . | . . . Highest Corruption . | . . . Average Corruption . | . . . Corruption Purged . | . . . Corruption Blocked . | . . . Overload Shots . | . . . Overflow Damage . | . . . Projectiles . | . . . Explosions . | . . . Melee . | . . . Knockbacks . | . . . Impact . | . . . Kinetic . | . . . Secondary . | . . . Self-Inflicted Damage 34 | . . 34 Shots 1 | . . 1 Rammed . | . . . Targets Rammed 1 | . . 1 Kicked 1 | . . 1 Crushed . | . . . Highest Temperature 36 | 6 . 36 Average Temperature 16 | 6 . 16 Received Heat Transfer 132 | . 102 30 Siege Activations . | . . . Robots Corrupted . | . . . Combat Hostiles . | . . . Parts Fried . | . . . Impact Corruptions . | . . . Robots Melted . | . . . Combat Hostiles . | . . . Parts Melted . | . . . Heat Transferred 50 | . . 50 Parts Sabotaged . | . . . Parts Stolen . | . . . Parts Stripped . | . . . Power Chain Reactions 1 | . . 1 Alert | -11 -10 -10 ------- Run | Yrd Mat Min Peak Influence 166 | 10 108 166 Initial 42 | . 6 42 Average 70 | 3 66 111 Maximum Alert Level . | . . . Low Security (%) 100 | 100 100 100 Level 1 . | . . . Level 2 . | . . . Level 3 . | . . . Level 4 . | . . . Level 5 . | . . . High Security . | . . . Max Security . | . . . Squads Dispatched . | . . . Investigation . | . . . Extermination . | . . . Reinforcement . | . . . Assault . | . . . Garrison . | . . . Intercept . | . . . Searches Triggered . | . . . Construction Impeded . | . . . Haulers Reinforced . | . . . Active Scanning Responses . | . . . Cargo Convoy Interrupts . | . . . Stealth | -11 -10 -10 --------- Run | Yrd Mat Min Distress Signals 1 | . 1 . Communications Jammed . | . . . Distress Signals . | . . . Times Spotted 12 | . 5 7 Peak Tracking Total 4 | . 4 3 Tactical Retreats . | . . . Traps | -11 -10 -10 ------- Run | Yrd Mat Min Traps Triggered . | . . . Indirectly . | . . . Trap Hack Attempts . | . . . Triggered . | . . . Disarmed . | . . . Reprogrammed . | . . . Reused . | . . . Traps Extracted . | . . . Installed . | . . . Triggered . | . . . Machines | -11 -10 -10 ---------- Run | Yrd Mat Min Machines Disabled . | . . . Max in Single Turn . | . . . Machines Repaired . | . . . Machines Dismantled . | . . . Machines Sabotaged . | . . . Overloaded Fab Kills . | . . . Hacking | -11 -10 -10 --------- Run | Yrd Mat Min Machines Accessed 1 | . 1 . Terminals 1 | . 1 . Fabricators . | . . . Repair Stations . | . . . Recycling Units . | . . . Scanalyzers . | . . . Garrison Access . | . . . Total Hacks 2 | . 2 . Successful . | . . . Failed 2 | . 2 . Catastrophic . | . . . Database Lockouts . | . . . Manual . | . . . Terminals 2 | . 2 . Fabricators . | . . . Repair Stations . | . . . Recycling Units . | . . . Scanalyzers . | . . . Garrison Access . | . . . Terminal Hacks . | . . . Fabricator Hacks . | . . . Repair Station Hacks . | . . . Recycling Unit Hacks . | . . . Scanalyzer . | . . . Garrison Access Hacks . | . . . Unauthorized Hacks . | . . . Terminals . | . . . Fabricators . | . . . Repair Stations . | . . . Recycling Units . | . . . Scanalyzers . | . . . Garrison Access . | . . . Data Cores Recovered . | . . . Used . | . . . Hacking Detections . | . . . Full Trace Events . | . . . Feedback Events . | . . . Feedback Blocked . | . . . Robot Schematics Acquired . | . . . Robots Built . | . . . Authchips . | . . . Time . | . . . Total Robot Build Rating . | . . . Part Schematics Acquired . | . . . Parts Built . | . . . Authchips . | . . . Time . | . . . Total Part Build Rating . | . . . Parts Repaired . | . . . Time . | . . . Parts Recycled . | . . . Recycled Matter . | . . . Retrieved Matter . | . . . Retrieved Components . | . . . Parts Scanalyzed . | . . . Part Schematics Acquired . | . . . Parts Damaged . | . . . Bothacking | -11 -10 -10 ------------ Run | Yrd Mat Min Used RIF Installer . | . . . Robots Hacked . | . . . Non-combat . | . . . Combat . | . . . Robot Hacks Applied . | . . . Relay Couplers Released . | . . . Fabnet Peak Effective % . | . . . Robots Rewired . | . . . Allies Hacked . | . . . Hacks Repelled . | . . . Allies | -11 -10 -10 -------- Run | Yrd Mat Min Total Allies . | . . . Largest Group . | . . . Highest-Rated Group . | . . . Highest-Rated Ally . | . . . Total Orders . | . . . Ally Attacks . | . . . Total Damage . | . . . Kills . | . . . Allies Corrupted . | . . . Allies Melted . | . . . Intel | -11 -10 -10 ------- Run | Yrd Mat Min Robot Analysis Total . | . . . Derelict Logs Recovered . | . . . Drone Launches . | . . . Drone Recoveries . | . . . Exploration | -11 -10 -10 ------------- Run | Yrd Mat Min Turns Passed 468 | 91 214 163 Spaces Moved 297 | 60 137 100 Core 7 | 7 . . Treads . | . . . Legs 90 | . . 90 Wheels 200 | 53 137 10 Hover . | . . . Flight . | . . . Fastest Speed 50 | 50 100 100 Average Speed 105 | 94 100 118 Slowest Speed 190 | 100 100 190 Overloaded Moves . | . . . Propulsion Burnouts . | . . . Robots Hopped . | . . . Cave-ins Triggered . | . . . Exploration Rate (%) 17 | 5 25 23 Regions Visited 2 Branch Regions 1 Pre-discovered Areas . | . . . Known Exits Taken . | . . . Unknown Exits Taken 2 | 1 1 . Scrap Searched . | . . . Spaces Dug . | . . . Terrain Destroyed 5 | . . 5 Melee . | . . . Projectile . | . . . AOE 5 | . . 5 Terrain Rammed . | . . . Walls Destroyed . | . . . Machines Disabled . | . . . Actions | -11 -10 -10 --------- Run | Yrd Mat Min Total 389 | 81 178 130 Wait 14 | . 5 9 Move 295 | 59 136 100 Hop . | . . . Pick Up 21 | 8 8 5 Fast Attach 5 | 4 . 1 Attach 6 | 3 2 1 Detach . | . . . Swap 4 | . 4 . Drop 9 | 1 4 4 Fire 34 | 6 19 9 Melee . | . . . Ram . | . . . Kick 1 | . . 1 Crush . | . . . Escape Stasis . | . . . Rewire . | . . . Trap . | . . . Miscellaneous . | . . . Route ------- -11/Scrapyard -10/Materials -10/Mines History --------- Turn | Location | Event 19 | -11/Scrapyard | Discovered new exit (range 14) 92 | -11/Scrapyard | Entered Materials 197 | -10/Materials | Core integrity fell below 50% 299 | -10/Materials | Discovered new exit (range 7) 306 | -10/Materials | Entered Mines 311 | -10/Mines | Build established: Mutant 419 | -10/Mines | Core integrity fell below 20% 447 | -10/Mines | Assembled infested the area 452 | -10/Mines | Assisted by a Guerilla fighting off Assembled 469 | -10/Mines | Destroyed by D-53 Grenadier with Mini Grenade Launcher Last Messages --------------- R-06 Scavenger collects Lgt. Ion Engine. Acquired 16 matter. K-01 Serf collects debris. Dropped Lgt. Assault Rifle. Acquired Lgt. Assault Rifle. R-06 Scavenger collects Lgt. Assault Rifle. R-06 Scavenger collects Flight Unit. Kicked R-06 Scavenger. K-01 Serf collects debris. ALERT: Infestation in the mines, dispatching Demolisher response squad. A derelict emerges from the shadows: "You need to get out of here! I've been tracking a group of Assembled to figure out where they're coming from, and they're closing on this area, come on!" C-30 ARC bursts open, deploying its payload. D-53 Grenadier unfolds itself. R-06 Scavenger collects Corrupted Flight Unit. K-01 Serf collects debris. Map ----- +----------------------------------------------------+ | ?????????????????????????????????????????????????? | | ?????????????????????????????????????????????????? | | ?????????????????????????????????????????????????? | | ?????????????????????????????????????????????????? | | ?????????????????????????????????????????????????? | | ?????????????????????????????????????????????????? | | ?????????????????????????????????????????????????? | | ?????????????????????????????????????????????????? | | ?????????????????????????????????????????????????? | | ?????????????????????????????????????????????????? | | ?????????????????????????????????????????????????? | | ?????????????????????????????#???????????????????? | | ????????????????????????????? ?????????????????? | | ???????????????????????????? ??????????????????? | | ???????????????????????????? ??????????????????? | | ???????????????? ?????????? ???????????????????? | | ???????????????# ????????? ???????????????????? | | ???????????????# ????????? #???????????????????? | | ???????????????# ????????? ????????????????????? | | ???????????????# #????????h ??##########????????? | | ???????????????# #???????# ???# #????????? | | ???????????????# ###????? ???# #????????? | | ???????????????# ##???? ##??# #????????? | | ??????????????## #??## ##?# #????????? | | ??????????????# ??## ### #????????? | | ??????????????# #### @ # #????????? | | ??????????????# # ### #????????? | | ??????????????# ## ##" " #????????? | | ??????????????# ## ##" " #????????? | | ??????????????# # ##" " #????????? | | ????????####### ### #????????? | | ????????# ###?### ######????????? | | ????????# ###???# ####??????????? | | ????????# #### ## r ##### #??????????? | | ??????????????# #### d ## #??????????? | | ??????????????# #??##d% ## #??????????? | | ??????????????## ##??##%= ####### #??##??????? | | ???????????????# ##???# = #?????# ### #??????? | | ???????????????# #???# r #?????# ## #??????? | | ???????????????# ???# k "% #???# #??????? | | ???????????????####??# " #??#######??????? | | ?????????????????????## ## #?????????????? | | ??????????????????????### ### #????????????? | | ????????????????????????# #??# #????????????? | | ????????????????????????# #???## #????????????? | | ????????????????????????# #?????# #????????????? | | ????????????????????????# #?????? ???????????? | | ????????????????????????# #??????? ##???????????? | | ????????????????????????# #????????#????????????? | | ????????????????????????# #?????????????????????? | +----------------------------------------------------+ Best States ------------- Heat Dissipation 25 Energy Generation 10 Energy Capacity 250 Matter Stores 300 Matter Capacity 300 Sight Range 16 Terrain Scan Density 10 Evasion (%) 55 Item Schematics ----------------- None Robot Schematics ------------------ None Fabricated ------------ Nothing Alien Tech Used ----------------- None Achievements -------------- None Challenges ------------ None Game ------ Seed BackupShockPit Manual? 0 Play Time 00:08:59 Cumulative 12.6 hours Start 2024.12.26 @ 19:17:20 End 2024.12.26 @ 19:23:38 Sessions 1 Manual Loads 0 Difficulty Rogue Special Mode None Game No. 19 Rogue 19 Adventurer 0 Explorer 0 Win Type - Total 0 Types 0/0/0/0/0/0/0/0/0 Lore% 9 Gallery% 17 Achievement% 13 Wizard Run 0 Options --------- Layout 2 ASCII 0 Keyboard 0 Movement Arrows Keybinds 0 Fullscreen 2 Font 24/Smallcaps Map View 50x44 Zoom Use 0% Tactical HUD 0 Map Filters NONE Filters NONE Steam 1 RUN: d48fc0fa-c221-4c3f-9fe2-5091e5288ab8